Organisation Name,Organisation Code,Organisational Unit,Service Category Label,Procurement Category,Supplier Name,Supplier Other ID,Payment Date,Transaction Number,Amount (�),Purpose
Eden District Council,http://opendatacommunities.org/id/district-council/eden,Financial Services Manager,Financial Services,Agency Staff,Reed Specialist Recruitment Ltd,REE009,05/08/2022,203978,638.7,FSE SUPPORT WE 15.7.22 EG
Eden District Council,http://opendatacommunities.org/id/district-council/eden,Commercial Services Manager,Economic Development and Promotion,Professional fees,DWF LAW LLP,DWF001,05/08/2022,204001,6000,LUF 2 APP -CCS FRAMEWORK PRO FEES
Eden District Council,http://opendatacommunities.org/id/district-council/eden,Financial Services Manager,Corporate Costs,Professional fees,CIRRUS PURCHASING LTD,CIR004,05/08/2022,204069,1500,PROCUREMENT SUPPORT OVER 12 MONTHS
Eden District Council,http://opendatacommunities.org/id/district-council/eden,Technical Services Manager,Parks and Open Spaces,Play areas - maintenance,RURAL LANDSCAPES CUMBRIA,RUR007,05/08/2022,204071,859.63,CONCRETE QUICKSET INC DELIVERY
Eden District Council,http://opendatacommunities.org/id/district-council/eden,Technical Services Manager,Recycling,Garden Waste Skips,CUMBRIA WASTE RECYCLING LTD,CUM022,05/08/2022,203829,4766,SKIPS
Eden District Council,http://opendatacommunities.org/id/district-council/eden,Environmental Services,Home Improvement Agency,Postages,CUMBRIA MAILING SERVICES LTD,CUM011,05/08/2022,203861,773.44,LAD 2 SW LETTER MAILING
Eden District Council,http://opendatacommunities.org/id/district-council/eden,Environmental Services,1996 Mandatory Renovation Grants,Capital grants,TOP NOTCH CONTRACTORS LTD,TOP003,05/08/2022,203943,6950,FIN PAYMENT GRANT REF 210079
Eden District Council,http://opendatacommunities.org/id/district-council/eden,Planning Services,Planning Services,Agency Staff,VIVID RESOURCING,VIV001,05/08/2022,203945,1192.17,TIME SHEET WE 17.7.22 DP
Eden District Council,http://opendatacommunities.org/id/district-council/eden,Commercial Services Manager,Commercial Services,Agency Staff,VIVID RESOURCING,VIV001,05/08/2022,203946,4375,TIME SHEET WE 17.7.22 FM
Eden District Council,http://opendatacommunities.org/id/district-council/eden,Planning Services,Planning Services,Agency Staff,VIVID RESOURCING,VIV001,05/08/2022,203947,2475,TIME SHEET WE 17.7.22 RF
Eden District Council,http://opendatacommunities.org/id/district-council/eden,Planning Services,Planning Services,Agency Staff,G2 RECRUITMENT SOLUTIONS,G2R001,05/08/2022,203948,1665,TIME SHEET WE 17.7.22 JH
Eden District Council,http://opendatacommunities.org/id/district-council/eden,Planning Services,Planning Services,Agency Staff,G2 RECRUITMENT SOLUTIONS,G2R001,05/08/2022,203949,2109,TIME SHEET WE 17.7.22 GH
Eden District Council,http://opendatacommunities.org/id/district-council/eden,Chief Executive's,Local Government Review,Local Government Reorganisation - Costs,APSE,APS001,05/08/2022,203951,11050,LGR WASTE WORK PACKAGE JUNE/ JULY22
Eden District Council,http://opendatacommunities.org/id/district-council/eden,Commercial Services Manager,Museum,Electricity,NPOWER LTD,NPO001,05/08/2022,203963,571.25,TIC 1.6.22-30.6.22
Eden District Council,http://opendatacommunities.org/id/district-council/eden,Environmental Services,Homelessness,Software � maintenance,LOCATA HOUSING SERVICES LTD,LOC013,05/08/2022,203975,8000,HPA2 APR22-MAR23
Eden District Council,http://opendatacommunities.org/id/district-council/eden,Technical Services Manager,Administrative Buildings,Electricity,NPOWER LTD,NPO001,05/08/2022,203980,2854.77,TH 1.5.22-31.5.22
Eden District Council,http://opendatacommunities.org/id/district-council/eden,Technical Services Manager,Administrative Buildings,Electricity,NPOWER LTD,NPO001,05/08/2022,203981,1375.7,MH 1.6.22-30.06.22
Eden District Council,http://opendatacommunities.org/id/district-council/eden,Technical Services Manager,Land Charges,Professional fees,CUMBRIA COUNTY COUNCIL,CCC002,05/08/2022,203986,1307.6,HIGHWAY SEARCHES MAY22
Eden District Council,http://opendatacommunities.org/id/district-council/eden,Technical Services Manager,Recycling,Recycling - Bag & Box,CUMBRIA WASTE RECYCLING LTD,CUM022,05/08/2022,203989,33177.97,CERT GB3 2022-23
Eden District Council,http://opendatacommunities.org/id/district-council/eden,Technical Services Manager,Recycling,Recycling  - Bring Sites,CUMBRIA WASTE RECYCLING LTD,CUM022,05/08/2022,203993,7585.36,cert bs3 2022-23
Eden District Council,http://opendatacommunities.org/id/district-council/eden,Technical Services Manager,Public Conveniences,Water testing,MITIE,REN007,05/08/2022,203602,1100,SERVICES 1.5.22-31.5.22
Eden District Council,http://opendatacommunities.org/id/district-council/eden,Technical Services Manager,Public Conveniences,Water testing,MITIE,REN007,05/08/2022,203603,1100,SERVICES 1.6.22-30.06.22
Eden District Council,http://opendatacommunities.org/id/district-council/eden,Technical Services Manager,Public Conveniences,Water testing,MITIE,REN007,05/08/2022,203604,1100,SERVICES 1.7.22-31.07.22
Eden District Council,http://opendatacommunities.org/id/district-council/eden,Environmental Services,Environmental Enforcement,Dog Contract O.O.H retainer,RENTOKIL INITIAL PEST CONTROL,REN009,05/08/2022,203857,1094.32,pests misc 1.8.22-31.08.22
Eden District Council,http://opendatacommunities.org/id/district-council/eden,Commercial Services Manager,Economic Development and Promotion,Grants and contributions,PENNINE VIEW PARK,PEN102,05/08/2022,204017,500,1ST APPRENTICE PAYMENT AM
Eden District Council,http://opendatacommunities.org/id/district-council/eden,Commercial Services Manager,Economic Development and Promotion,Grants and contributions,SHINING STARS NURSERY,SHI007,05/08/2022,204020,1000,1ST APPRENTICE PAYMENT ARH
Eden District Council,http://opendatacommunities.org/id/district-council/eden,Technical Services Manager,Public Conveniences,Window cleaning,URBASER LIMITED,URB002,05/08/2022,203817,13751.4,CERT2022/23_bc_15
Eden District Council,http://opendatacommunities.org/id/district-council/eden,Environmental Services,Environmental Enforcement,Dog Contract O.O.H retainer,URBASER LIMITED,URB002,05/08/2022,203865,1025.85,STRAY DOG JULY22
Eden District Council,http://opendatacommunities.org/id/district-council/eden,Technical Services Manager,Public Conveniences,Building Maintenance,URBASER LIMITED,URB002,05/08/2022,203879,2416.98,BUILDING RESPONSE AD HOC APRIL22
Eden District Council,http://opendatacommunities.org/id/district-council/eden,Technical Services Manager,Refuse Collection,Contract refuse collection,URBASER LIMITED,URB002,05/08/2022,203995,82844.25,CERT M-RC 124
Eden District Council,http://opendatacommunities.org/id/district-council/eden,Environmental Services,Appleby Fair,Street Cleaning Contract,URBASER LIMITED,URB002,05/08/2022,203997,20206.07,CERT M-SC124
Eden District Council,http://opendatacommunities.org/id/district-council/eden,Technical Services Manager,Recycling,Em Wks Storage,URBASER LIMITED,URB002,05/08/2022,203998,582.83,CERT M-M&EW 124/2022
Eden District Council,http://opendatacommunities.org/id/district-council/eden,Technical Services Manager,Refuse Collection,Refuse Contract Dayworks,URBASER LIMITED,URB002,05/08/2022,204008,1579.85,CERT RC114
Eden District Council,http://opendatacommunities.org/id/district-council/eden,Technical Services Manager,Street Cleaning,Street Cleaning Contract,URBASER LIMITED,URB002,05/08/2022,204014,2034.51,SC104
Eden District Council,http://opendatacommunities.org/id/district-council/eden,Technical Services Manager,Street Cleaning,Street Cleaning Contract,URBASER LIMITED,URB002,05/08/2022,204015,1309.25,CERT SC105
Eden District Council,http://opendatacommunities.org/id/district-council/eden,Technical Services Manager,Refuse Collection,Refuse Contract Dayworks,URBASER LIMITED,URB002,05/08/2022,204016,1817.95,CERT RC115
Eden District Council,http://opendatacommunities.org/id/district-council/eden,Technical Services Manager,Parks and Open Spaces,Ground Maintenance SOR & Dayworks,NORTHERN ARB LTD,NOR069,12/08/2022,203982,9500,TURFING AT CASTLE PARK
Eden District Council,http://opendatacommunities.org/id/district-council/eden,Financial Services Manager,Financial Services,Professional fees,A N SCHOON,SCH004,12/08/2022,204093,1450,VALUING HERITAGE ASSETS
Eden District Council,http://opendatacommunities.org/id/district-council/eden,Environmental Services,1996 Mandatory Renovation Grants,Capital grants,HANDICARE ACCESSIBILITY LTD,FRE002,12/08/2022,204113,4155,FIN PAYMENT GRANT REF 220014
Eden District Council,http://opendatacommunities.org/id/district-council/eden,Environmental Services,1996 Mandatory Renovation Grants,Capital grants,HANDICARE ACCESSIBILITY LTD,FRE002,12/08/2022,204126,2655,FIN PAYMENT GRANT REF 220037
Eden District Council,http://opendatacommunities.org/id/district-council/eden,Commercial Services Manager,Economic Development and Promotion,Professional fees,CUMBRIA CHAMBER OF COMMERCE AND INDUSTRY,CUM003,12/08/2022,204145,1300,13 memberships
Eden District Council,http://opendatacommunities.org/id/district-council/eden,Commercial Services Manager,Tourism Promotion,Distribution,BUCKET  & SPADE MEDIA LTD,BUC010,12/08/2022,204146,2000,2023 visit eden guide
Eden District Council,http://opendatacommunities.org/id/district-council/eden,Financial Services Manager,Corporate Costs,Control account system code,CUMBRIA COUNTY COUNCIL,CCC002,12/08/2022,203516,2005.48,REFUND OVERPAYMENT CARE LEAVERS INVOICE
Eden District Council,http://opendatacommunities.org/id/district-council/eden,Environmental Services,Homelessness,Prevention Cost,EDEN HOUSING ASSOCIATION LTD,EDE001,12/08/2022,204003,648.9,HOMELESS ACCOM RENT ARREAR 21.10-2.11.20
Eden District Council,http://opendatacommunities.org/id/district-council/eden,Environmental Services,Homelessness,Accommodation,EDEN HOUSING ASSOCIATION LTD,EDE001,12/08/2022,204006,-6885.79,CREDIT QTR 1 22/23 HOMLESSNESS
Eden District Council,http://opendatacommunities.org/id/district-council/eden,Environmental Services,Homelessness,Agency Agreement,EDEN HOUSING ASSOCIATION LTD,EDE001,12/08/2022,204007,112514.97,QTR 1 22/23 HOMELESSNESS/HOUSING ADVICE
Eden District Council,http://opendatacommunities.org/id/district-council/eden,Environmental Services,Homelessness,Prevention Cost,EDEN HOUSING ASSOCIATION LTD,EDE001,12/08/2022,204068,-3457.43,CREDIT QTR1 2022/23
Eden District Council,http://opendatacommunities.org/id/district-council/eden,Technical Services Manager,Land Charges,Professional fees,CUMBRIA COUNTY COUNCIL,CCC002,12/08/2022,204094,699.6,highway searches june22
Eden District Council,http://opendatacommunities.org/id/district-council/eden,Revenue/Benefits Manager,REVENUES,Unique payments ****,REDACTED INFORMATION,DUG001,12/08/2022,204138,3696.23,REFUND COUNCIL TAX
Eden District Council,http://opendatacommunities.org/id/district-council/eden,Revenue/Benefits Manager,REVENUES,Unique payments ****,THE CARLISLE DIOCESAN BOARD OF FINANCE,CAR043,12/08/2022,204143,3378.28,COUNCIL TAX REFUND
Eden District Council,http://opendatacommunities.org/id/district-council/eden,Environmental Services,Appleby Fair,Abnormal maintenance,URBASER LIMITED,URB002,12/08/2022,203883,4058.06,BUILDING RESPONSE AD HOC JUN22
Eden District Council,http://opendatacommunities.org/id/district-council/eden,Financial Services Manager,Corporate Costs,Audit fee,GRANT THORNTON UK LLP,THO026,12/08/2022,204089,53203,2019/20 EXT AUDIT FEES
Eden District Council,http://opendatacommunities.org/id/district-council/eden,Environmental Services,Environmental Services,Agency Staff,IRG ADVISORS LLP / T/A ODGERS INTERIM,ODG001,12/08/2022,204124,3660,INTERIM DIRECTOR COMMUNITIES
Eden District Council,http://opendatacommunities.org/id/district-council/eden,Legal Services Manager,Elections,Printing and stationary,PRINT IMAGE NETWORK LTD,PRI011,12/08/2022,204129,1029,EDEN BY ELECTION POLL CARDS
Eden District Council,http://opendatacommunities.org/id/district-council/eden,Commercial Services Manager,Community Development & Engagement,Community Fund,PENRITH TOWN COUNCIL,PEN080,12/08/2022,204152,1959.47,1ST PAYMENT EDEN COMMUNITY FUND
Eden District Council,http://opendatacommunities.org/id/district-council/eden,Environmental Services,Environmental Services,Agency Staff,VIVID RESOURCING,VIV001,12/08/2022,203944,920,TIME SHEET WE 17.7.22 BN
Eden District Council,http://opendatacommunities.org/id/district-council/eden,Financial Services Manager,Financial Services,Agency Staff,CASTLEFIELD RECRUITMENT LTD,CAS016,12/08/2022,203976,2100,FSE SUPPORT 11.7.22-17.7.22 SH
Eden District Council,http://opendatacommunities.org/id/district-council/eden,Technical Services Manager,Arts and Leisure,Other charges for services,Grounds Management Association,GMA001,12/08/2022,203977,1109,FEE EXPENSES 15.7.22
Eden District Council,http://opendatacommunities.org/id/district-council/eden,Technical Services Manager,Parks and Open Spaces,GM External Contractors,NORTHERN ARB LTD,NOR069,12/08/2022,203984,1750,TREE WORK DANGEROUS ASH TREE
Eden District Council,http://opendatacommunities.org/id/district-council/eden,Transformation & Customers Head of,Central Expenses,Postages,CUMBRIA MAILING SERVICES LTD,CUM011,12/08/2022,203999,665.14,REFUSE SACKS MAILING
Eden District Council,http://opendatacommunities.org/id/district-council/eden,Planning Services,Development Control & Enforcement,Advertising,BARRNON MEDIA LTD,CUM001,12/08/2022,204009,540,PLAN ADS 23.7.22
Eden District Council,http://opendatacommunities.org/id/district-council/eden,Technical Services Manager,Administrative Buildings,Planned Maintenance,DYNAMIC JOINERY LTD,DYN004,12/08/2022,204070,3750,2ND PART REMOVE REPLACE WINDOW FRAME
Eden District Council,http://opendatacommunities.org/id/district-council/eden,Planning Services,Planning Services,Agency Staff,G2 RECRUITMENT SOLUTIONS,G2R001,12/08/2022,204072,1710,TIME SHEET WE 24.07.22 GH
Eden District Council,http://opendatacommunities.org/id/district-council/eden,Planning Services,Planning Services,Agency Staff,G2 RECRUITMENT SOLUTIONS,G2R001,12/08/2022,204073,1665,TIME SHEET WE 24.7.22 JH
Eden District Council,http://opendatacommunities.org/id/district-council/eden,Commercial Services Manager,Commercial Services,Agency Staff,VIVID RESOURCING,VIV001,12/08/2022,204074,5500,TIME SHEET WE 17/7 24/7 GM
Eden District Council,http://opendatacommunities.org/id/district-council/eden,Environmental Services,Environmental Services,Agency Staff,VIVID RESOURCING,VIV001,12/08/2022,204075,1400,TIME SHEET WE 24.7.22 BN
Eden District Council,http://opendatacommunities.org/id/district-council/eden,Planning Services,Planning Services,Agency Staff,VIVID RESOURCING,VIV001,12/08/2022,204076,2150,TIME SHEET 24/7 18/7 js
Eden District Council,http://opendatacommunities.org/id/district-council/eden,Planning Services,Planning Services,Agency Staff,VIVID RESOURCING,VIV001,12/08/2022,204077,1102.5,time sheet we 24/7 dp
Eden District Council,http://opendatacommunities.org/id/district-council/eden,Planning Services,Planning Services,Agency Staff,VIVID RESOURCING,VIV001,12/08/2022,204078,2370,time sheet we 24.7.22 pj
Eden District Council,http://opendatacommunities.org/id/district-council/eden,Environmental Services,1996 Mandatory Renovation Grants,Capital grants,TOP NOTCH CONTRACTORS LTD,TOP003,12/08/2022,204154,6070,FINAL PAYMENT GRANT REF 210101
Eden District Council,http://opendatacommunities.org/id/district-council/eden,Financial Services Manager,Corporate Costs,Unique payments ****,INLAND REVENUE,INL003,19/08/2022,204300,596.4,CORPORATE COSTS
Eden District Council,http://opendatacommunities.org/id/district-council/eden,Commercial Services Manager,Economic Development and Promotion,Special Projects,WE ARE TEAM LTD,WEA007,19/08/2022,204199,13000,SHOW FEE
Eden District Council,http://opendatacommunities.org/id/district-council/eden,Commercial Services Manager,Commercial Services,Agency Staff,VIVID RESOURCING,VIV001,19/08/2022,204210,2750,TIME SHEET WE 31.07.22 GM
Eden District Council,http://opendatacommunities.org/id/district-council/eden,Human Resources Manager,Staff Development,Training Expenses,ACT NOW TRAINING,ACT006,19/08/2022,204214,2150,ONLINE GDPR CERT 31.10.22
Eden District Council,http://opendatacommunities.org/id/district-council/eden,Commercial Services Manager,Eden Leisure Centre & Appleby Swimming P,LEISURE MAINTENANCE,SHAUN BELL ELECTRICAL LTD,SHA036,19/08/2022,204240,19768.1,PENRITH LEISURE CENTRE WORKS
Eden District Council,http://opendatacommunities.org/id/district-council/eden,Environmental Services,1996 Mandatory Renovation Grants,Capital grants,CLOSOMAT LTD,TOT001,19/08/2022,204304,4463,FINAL PAYMENT GRANT REF 210108
Eden District Council,http://opendatacommunities.org/id/district-council/eden,Commercial Services Manager,Commercial Services,Agency Staff,VIVID RESOURCING,VIV001,19/08/2022,204310,2750,TIME SHEET WE 7.8.22 GM
Eden District Council,http://opendatacommunities.org/id/district-council/eden,Information Technology Manager,Information Technology,Government Connect,NOMINET,NOM001,19/08/2022,204092,765.94,DNS SERVICES Q2 COMM CHARGE Q4
Eden District Council,http://opendatacommunities.org/id/district-council/eden,Transformation & Customers Head of,Central Expenses,Supplies general,HEATONS GROUP LTD,LAK004,19/08/2022,204110,1203.44,STATIONERY/PAPER
Eden District Council,http://opendatacommunities.org/id/district-council/eden,Environmental Services,1996 Mandatory Renovation Grants,Capital grants,TOP NOTCH CONTRACTORS LTD,TOP003,19/08/2022,204125,600,FINAL PAYMENT GRANT REF 210090
Eden District Council,http://opendatacommunities.org/id/district-council/eden,Commercial Services Manager,Commercial Services,Agency Staff,Philippa Ball,BAL010,19/08/2022,204133,6017.5,ECO DEV SUPPORT JUK22
Eden District Council,http://opendatacommunities.org/id/district-council/eden,Commercial Services Manager,Economic Development and Promotion,Special Projects,WALTON GOODLAND LTD,WAL008,19/08/2022,204140,2056.25,UNIT L1 NEW SQUARES
Eden District Council,http://opendatacommunities.org/id/district-council/eden,Information Technology Manager,Information Technology,Printers Contract,Konica Minolta Business Solutions UK Limited,KON003,19/08/2022,203825,2625.06,BIZ HUB 1.7.22-30.9.22
Eden District Council,http://opendatacommunities.org/id/district-council/eden,Technical Services Manager,Footway Lighting,Electricity,NPOWER LTD,NPO001,19/08/2022,204200,5710.56,ST LIGHTING MH 1.7.22-31.07.22
Eden District Council,http://opendatacommunities.org/id/district-council/eden,Technical Services Manager,Land Management,Professional expenses,BAKER MALLETT LLP,BAK010,19/08/2022,204203,732,FEASIBILITY/ TENDER/FEES NR20
Eden District Council,http://opendatacommunities.org/id/district-council/eden,Technical Services Manager,Land Management,Professional expenses,BAKER MALLETT LLP,BAK010,19/08/2022,204204,2310,PROJECT MANAGER NR 19 JULY22
Eden District Council,http://opendatacommunities.org/id/district-council/eden,Commercial Services Manager,Economic Development and Promotion,Professional fees,PIZZA ROMA,PIZ003,19/08/2022,204212,29559.35,PISCA GRANT CLAIM
Eden District Council,http://opendatacommunities.org/id/district-council/eden,Commercial Services Manager,Economic Development and Promotion,Grants and contributions,JOHNSTONES GARAGE,JOH033,19/08/2022,204216,500,APPRENTICESHIP GRANT RE
Eden District Council,http://opendatacommunities.org/id/district-council/eden,Technical Services Manager,Provision of Ameneties,Litter bins,BARTON PARISH COUNCIL,BAR001,19/08/2022,204219,1000,DONATION RUBBISH BINS
Eden District Council,http://opendatacommunities.org/id/district-council/eden,Technical Services Manager,Administrative Buildings,Water charges � metered,WATER PLUS,UNI008,19/08/2022,204234,846.46,MH 2.7.22-1.8.22
Eden District Council,http://opendatacommunities.org/id/district-council/eden,Legal Services Manager,Elections,Postages,PRINT IMAGE NETWORK LTD,PRI011,19/08/2022,204247,1341,EDEN CARLETONBY MAILING
Eden District Council,http://opendatacommunities.org/id/district-council/eden,Legal Services Manager,Elections,Printing and stationary,PRINT IMAGE NETWORK LTD,PRI011,19/08/2022,204248,986,EDEN CARLETON BALLOT BOOKS
Eden District Council,http://opendatacommunities.org/id/district-council/eden,Commercial Services Manager,Economic Development and Promotion,Professional fees,APPLEBY TOWN COUNCIL,APP001,19/08/2022,204254,38870.07,PISCA GRANT CLAIM
Eden District Council,http://opendatacommunities.org/id/district-council/eden,Financial Services Manager,Financial Services,Agency Staff,Reed Specialist Recruitment Ltd,REE009,02/09/2022,204104,723.86,FSE SUPPORT W/E 22.7.22 EG
Eden District Council,http://opendatacommunities.org/id/district-council/eden,Financial Services Manager,Financial Services,Agency Staff,Reed Specialist Recruitment Ltd,REE009,02/09/2022,204237,739.83,FSE SUPPORT WE 29.7.22 EG
Eden District Council,http://opendatacommunities.org/id/district-council/eden,Technical Services Manager,Parks and Open Spaces,Ground Maintenance SOR & Dayworks,NORTHERN ARB LTD,NOR069,02/09/2022,204238,550,TREE WORKS ASH TREE CROWN RAISE
Eden District Council,http://opendatacommunities.org/id/district-council/eden,Environmental Services,Home Improvement Agency,Postages,CUMBRIA MAILING SERVICES LTD,CUM011,02/09/2022,204391,2028.02,SUSTAINABLE WARMTH CUMBRIA
Eden District Council,http://opendatacommunities.org/id/district-council/eden,Information Technology Manager,Information Technology,Computer equipment,TEQEX LTD,TEQ001,02/09/2022,204401,1547.85,LENOVO THINKSTATION
Eden District Council,http://opendatacommunities.org/id/district-council/eden,Planning Services,Planning Services,Agency Staff,G2 RECRUITMENT SOLUTIONS,G2R001,02/09/2022,204411,3250,TIME SHEET WE 14.8.22 PG
Eden District Council,http://opendatacommunities.org/id/district-council/eden,Planning Services,Planning Services,Agency Staff,VIVID RESOURCING,VIV001,02/09/2022,204412,2220,TIME SHEET WE 14.8.22 PJ
Eden District Council,http://opendatacommunities.org/id/district-council/eden,Commercial Services Manager,Commercial Services,Agency Staff,VIVID RESOURCING,VIV001,02/09/2022,204415,2750,TIME SHEET WE 14.8.22 GM
Eden District Council,http://opendatacommunities.org/id/district-council/eden,Environmental Services,Environmental Services,Software � maintenance,CIVICA UK LTD,CIV002,02/09/2022,204532,5775,APP UPGRADE
Eden District Council,http://opendatacommunities.org/id/district-council/eden,Commercial Services Manager,Economic Development and Promotion,Special Projects,PEOPLE AND PLACES INSIGHT LIMITED,PEO001,02/09/2022,204533,6500,EDC BENCHMARKING
Eden District Council,http://opendatacommunities.org/id/district-council/eden,Commercial Services Manager,Community Development & Engagement,Grants and contributions,WEST DEVON BOROUGH COUNCIL,WES030,02/09/2022,204539,2540,rural services network annual subs
Eden District Council,http://opendatacommunities.org/id/district-council/eden,Technical Services Manager,Administrative Buildings,Mechanical & electrical maintenance,TESGL LTD,NOB001,02/09/2022,204550,636,BMS MAINTENANCE TH
Eden District Council,http://opendatacommunities.org/id/district-council/eden,Commercial Services Manager,Commercial Services,Agency Staff,VIVID RESOURCING,VIV001,02/09/2022,204552,2750,TIME SHEET WE 21.8.22 GM
Eden District Council,http://opendatacommunities.org/id/district-council/eden,Commercial Services Manager,Commercial Services,Agency Staff,VIVID RESOURCING,VIV001,02/09/2022,204554,4375,TIME SHEET WE 21.8.22 fm
Eden District Council,http://opendatacommunities.org/id/district-council/eden,Planning Services,Planning Services,Agency Staff,G2 RECRUITMENT SOLUTIONS,G2R001,02/09/2022,204568,3250,time sheet we 21.8.22 pg
Eden District Council,http://opendatacommunities.org/id/district-council/eden,Technical Services Manager,Arts and Leisure,Other charges for services,SPORTS MANAGEMENT SOLUTIONS,SPO011,02/09/2022,204578,1450,SLA STAGE 1 FEASILIBILITY
Eden District Council,http://opendatacommunities.org/id/district-council/eden,Technical Services Manager,Arts and Leisure,Grants and contributions,BLUE JAM,BLU003,02/09/2022,203954,25000,PAYMENT OF SLA AGREEMENT
Eden District Council,http://opendatacommunities.org/id/district-council/eden,Technical Services Manager,Arts and Leisure,Grants and contributions,EDEN VALLEY ARTISTIC NEWTORK CIC,EDE083,02/09/2022,203955,25000,PAYMENT OF SLA AGREEMENT
Eden District Council,http://opendatacommunities.org/id/district-council/eden,Environmental Services,Environmental Services,Agency Staff,G2 RECRUITMENT SOLUTIONS,G2R001,02/09/2022,204311,3250,TIME SHEET WE 7.8.22 PG
Eden District Council,http://opendatacommunities.org/id/district-council/eden,Technical Services Manager,Arts and Leisure,Grants and contributions,HIGHLIGHTS PRODUCTIONS,HIG017,02/09/2022,204403,25000,SLA PAYMENT YEAR 2022/23
Eden District Council,http://opendatacommunities.org/id/district-council/eden,Technical Services Manager,Land Charges,Professional fees,CUMBRIA COUNTY COUNCIL,CCC002,02/09/2022,204420,1197.1,HIGHWAY SEARCHES JUL22
Eden District Council,http://opendatacommunities.org/id/district-council/eden,Technical Services Manager,Recycling,Recycling  - Bring Sites,CUMBRIA WASTE RECYCLING LTD,CUM022,02/09/2022,204507,7585.36,CERT BS4 2022/23
Eden District Council,http://opendatacommunities.org/id/district-council/eden,Technical Services Manager,Recycling,Recycling - Bag & Box,CUMBRIA WASTE RECYCLING LTD,CUM022,02/09/2022,204508,33177.97,CERT GB4 2022/23
Eden District Council,http://opendatacommunities.org/id/district-council/eden,Commercial Services Manager,Community Development & Engagement,Community Fund,FRIENDS OF SHAP SCHOOL,FRI011,02/09/2022,204510,671.48,2ND PAYMENT EDEN COMMUNITY FUND
Eden District Council,http://opendatacommunities.org/id/district-council/eden,Commercial Services Manager,Community Development & Engagement,Community Fund,CASTLETOWN COMMUNITY CENTRE,CAS010,02/09/2022,204528,3000,1ST EDEN COMMUNITY GRANT
Eden District Council,http://opendatacommunities.org/id/district-council/eden,Technical Services Manager,Recycling,Recycling - Garden Waste,CUMBRIA WASTE RECYCLING LTD,CUM022,02/09/2022,204543,37383.56,CERT GW-4-22/23
Eden District Council,http://opendatacommunities.org/id/district-council/eden,Commercial Services Manager,Community Development & Engagement,Community Fund,CLIBURN COMMUNITY PLAY AREA ASSOCIATION,CLI012,02/09/2022,204558,1000,2nd payment edc community fund
Eden District Council,http://opendatacommunities.org/id/district-council/eden,Commercial Services Manager,Economic Development and Promotion,Grants and contributions,A DAVIDSON LTD,DAV038,02/09/2022,204563,500,1ST APPRENTICE PAYMENT AC
Eden District Council,http://opendatacommunities.org/id/district-council/eden,Technical Services Manager,Land Management,Professional expenses,MBSP CONSULTANCY LTD,MBS001,02/09/2022,204226,7050,ONE EDEN JULY 22
Eden District Council,http://opendatacommunities.org/id/district-council/eden,Financial Services Manager,Corporate Costs,Balance Sheet entry BS,GREENWICH LEISURE LTD,NCL001,02/09/2022,204255,11113.76,MANAGMENT FEE MAR 22
Eden District Council,http://opendatacommunities.org/id/district-council/eden,Financial Services Manager,Corporate Costs,Balance Sheet entry BS,GREENWICH LEISURE LTD,NCL001,02/09/2022,204256,11113.76,MANAGEMENT FEE JAN 22
Eden District Council,http://opendatacommunities.org/id/district-council/eden,Financial Services Manager,Corporate Costs,Balance Sheet entry BS,GREENWICH LEISURE LTD,NCL001,02/09/2022,204257,11113.76,MANAGEMENT FEE FEB 22
Eden District Council,http://opendatacommunities.org/id/district-council/eden,Commercial Services Manager,Museum,Electricity,NPOWER LTD,NPO001,02/09/2022,204321,-571.25,TIC PENRITH 1.6.22-30.6.22
Eden District Council,http://opendatacommunities.org/id/district-council/eden,Technical Services Manager,Administrative Buildings,Electricity,NPOWER LTD,NPO001,02/09/2022,204364,2802.02,TOWN HALL 1.7.22-31.07.22
Eden District Council,http://opendatacommunities.org/id/district-council/eden,Commercial Services Manager,Economic Development and Promotion,Grants and contributions,LAMONDS PAINTING AND DECORATING,LAM010,02/09/2022,204392,500,1ST APPRENTICE PAYMENT NA
Eden District Council,http://opendatacommunities.org/id/district-council/eden,Technical Services Manager,Administrative Buildings,Electricity,NPOWER LTD,NPO001,02/09/2022,204393,1441.58,MH 1.7.22-31.07.22
Eden District Council,http://opendatacommunities.org/id/district-council/eden,Human Resources Manager,Central Expenses,Subscriptions & levies,NORTH WEST LOCAL AUTHORITIES EMPLOYERS ORGANISATION,NOR001,02/09/2022,204512,3349.87,MEMBERS SUBSCRIPTION APR22-MAR22
Eden District Council,http://opendatacommunities.org/id/district-council/eden,Technical Services Manager,Administrative Buildings,Electricity,NPOWER LTD,NPO001,02/09/2022,204520,2661.2,TH 1.6.22-30.06.22
Eden District Council,http://opendatacommunities.org/id/district-council/eden,Technical Services Manager,Community Capital,Professional expenses,WALTON GOODLAND LTD,WAL008,02/09/2022,203985,3526.25,CASTLE PARK TENNIS COURTS
Eden District Council,http://opendatacommunities.org/id/district-council/eden,Planning Policy Manager,Local Plans & Policy,Professional fees,WATER ENVIRONMENT LIMITED,WAT047,02/09/2022,203994,1000,WATER QUALITY /HRA/NUTRIENT NEUTRALITY
Eden District Council,http://opendatacommunities.org/id/district-council/eden,Legal Services Manager,Land Management,Land Management Contract,WALTON GOODLAND LTD,WAL008,02/09/2022,204141,3206,RATE FOR SURVEYOR JULY22
Eden District Council,http://opendatacommunities.org/id/district-council/eden,Commercial Services Manager,Community Development & Engagement,Community Fund,WARCOP PARISH COUNCIL,WAR001,02/09/2022,204151,7500,1ST PAYMENT EDEN COMMUNITY FUND
Eden District Council,http://opendatacommunities.org/id/district-council/eden,Legal Services Manager,Register of Electors,Postages,PRINT IMAGE FACILITIES LLP,PRI014,02/09/2022,204220,16715.22,2022 CANVASS MAILINGS POSTAGE
Eden District Council,http://opendatacommunities.org/id/district-council/eden,Technical Services Manager,Arts and Leisure,Grants and contributions,UPFRONT ARTS LTD,UPF001,02/09/2022,204404,25000,SLA PAYMENT YEAR 2022/23
Eden District Council,http://opendatacommunities.org/id/district-council/eden,Legal Services Manager,Elections,Postages,PRINT IMAGE FACILITIES LLP,PRI014,02/09/2022,204509,1273.53,2022 PENRITH EAST POLL CARD POSTAGE
Eden District Council,http://opendatacommunities.org/id/district-council/eden,Commercial Services Manager,Community Development & Engagement,Community Fund,THE POLICE & CRIME COMMISSIONER FOR CUMBRIA,THE006,02/09/2022,204521,3180,SARC 22/23 FUNDING
Eden District Council,http://opendatacommunities.org/id/district-council/eden,Environmental Services,Environmental Enforcement,Dog Contract O.O.H retainer,URBASER LIMITED,URB002,02/09/2022,204525,1025.85,STRAY DOG AUG22
Eden District Council,http://opendatacommunities.org/id/district-council/eden,Legal Services Manager,Register of Electors,Printing and stationary,PRINT IMAGE NETWORK LTD,PRI011,02/09/2022,204530,4952.38,EDEN22 CANVASS MAILINGS
Eden District Council,http://opendatacommunities.org/id/district-council/eden,Technical Services Manager,Cemeteries,ADHOC WORKS FOR BURIALS,URBASER LIMITED,URB002,02/09/2022,204536,830.7,cert gmc3
Eden District Council,http://opendatacommunities.org/id/district-council/eden,Information Technology Manager,Information Technology,Shared IT Services,SOUTH LAKELAND DISTRICT COUNCIL,SOU006,02/09/2022,204545,78840.89,IT SHARED SERVICES QTR 1 22/23
Eden District Council,http://opendatacommunities.org/id/district-council/eden,Information Technology Manager,Information Technology,Shared IT Services,SOUTH LAKELAND DISTRICT COUNCIL,SOU006,02/09/2022,204546,78840.89,IT SHARED SERVICES QTR2 22/23
Eden District Council,http://opendatacommunities.org/id/district-council/eden,Technical Services Manager,Recycling,VRC Payments,BROUGH PARISH COUNCIL,BRO003,02/09/2022,204646,524.86,VRC Apr - Sep 2021
Eden District Council,http://opendatacommunities.org/id/district-council/eden,Technical Services Manager,Recycling,VRC Payments,LANGWATHBY PARISH COUNCIL,LAN001,02/09/2022,204665,508.36,VRC Apr - Sep 2021
Eden District Council,http://opendatacommunities.org/id/district-council/eden,Technical Services Manager,Recycling,VRC Payments,SHAP MEMORIAL HALL,SHA001,02/09/2022,204677,529.92,VRC Apr - Sep 2021
Eden District Council,http://opendatacommunities.org/id/district-council/eden,Technical Services Manager,Recycling,VRC Payments,TEBAY COMMUNITY PRIMARY SCHOOL,TEB006,02/09/2022,204681,534.63,VRC Apr - Sep 2021
Eden District Council,http://opendatacommunities.org/id/district-council/eden,Financial Services Manager,Financial Services,Agency Staff,CASTLEFIELD RECRUITMENT LTD,CAS016,02/09/2022,204101,2100,FSE SUPPORT 18.7.22-24.7.22 SH
Eden District Council,http://opendatacommunities.org/id/district-council/eden,Environmental Services,1996 Mandatory Renovation Grants,Capital grants,TOP NOTCH CONTRACTORS LTD,TOP003,02/09/2022,204153,3750,FIN PAYMENT GRANT REF 220003
Eden District Council,http://opendatacommunities.org/id/district-council/eden,Financial Services Manager,Financial Services,Agency Staff,CIPFA PENNA,CIP013,02/09/2022,204195,12894.5,INTERIM MANAGMENT DB JULY22
Eden District Council,http://opendatacommunities.org/id/district-council/eden,Corporate Services Director,Director of Corporate Services,Agency Staff,CIPFA PENNA,CIP013,02/09/2022,204196,17600,INTERIM MANAGMENT PS JULY22
Eden District Council,http://opendatacommunities.org/id/district-council/eden,Corporate Services Director,Director of Corporate Services,Agency Staff,CIPFA PENNA,CIP013,02/09/2022,204197,880,INTERIM MANAGMENT PS JULY22
Eden District Council,http://opendatacommunities.org/id/district-council/eden,Chief Executive's,Chief Executive,Agency Staff,CIPFA PENNA,CIP013,02/09/2022,204198,18880,INTERIM MANAGMENT IF JULY22
Eden District Council,http://opendatacommunities.org/id/district-council/eden,Planning Services,Planning Services,Agency Staff,G2 RECRUITMENT SOLUTIONS,G2R001,02/09/2022,204205,2109,TIME SHEET WE 31.07.22 GH
Eden District Council,http://opendatacommunities.org/id/district-council/eden,Planning Services,Planning Services,Agency Staff,VIVID RESOURCING,VIV001,02/09/2022,204208,2200,TIME SHEET WE 31.07.22 JS
Eden District Council,http://opendatacommunities.org/id/district-council/eden,Environmental Services,Environmental Services,Agency Staff,VIVID RESOURCING,VIV001,02/09/2022,204209,1040,TIME SHEET WE 31.07.22 BN
Eden District Council,http://opendatacommunities.org/id/district-council/eden,Planning Services,Planning Services,Agency Staff,VIVID RESOURCING,VIV001,02/09/2022,204211,2400,TIME SHEET WE 31.07.22 PJ
Eden District Council,http://opendatacommunities.org/id/district-council/eden,Commercial Services Manager,Economic Development and Promotion,Business Support,The Farmer Network Ltd,FAR019,02/09/2022,204213,3067.8,INSPIRING EDEN PROJECT TO 30.6.22
Eden District Council,http://opendatacommunities.org/id/district-council/eden,Financial Services Manager,Financial Services,Agency Staff,CASTLEFIELD RECRUITMENT LTD,CAS016,02/09/2022,204217,2100,FSE SUPPORT 25.7.22-31.07.22 SH
Eden District Council,http://opendatacommunities.org/id/district-council/eden,Commercial Services Manager,Tourism Promotion,Marketing,LIFESTYLE MEDIA GROUP LTD,CAT003,02/09/2022,204228,6861.92,BROCHURES 1.6.22-31.7.22
Eden District Council,http://opendatacommunities.org/id/district-council/eden,Commercial Services Manager,Tourism Promotion,Marketing,LIFESTYLE MEDIA GROUP LTD,CAT003,02/09/2022,204229,1504.12,BROCHURES JUL-AUG22
Eden District Council,http://opendatacommunities.org/id/district-council/eden,Commercial Services Manager,Economic Development and Promotion,Professional fees,HATCH ASSOCIATES LTD,HAT003,02/09/2022,204230,11500,FINAL BALANCE AGREED FEES
Eden District Council,http://opendatacommunities.org/id/district-council/eden,Planning Policy Manager,Local Plans & Policy,Professional fees,WOOD GROUP UK LTD,WOO021,02/09/2022,204239,7622.5,TO 08.08.22 PM INCEPTION SCOPING REPORT
Eden District Council,http://opendatacommunities.org/id/district-council/eden,Technical Services Manager,Eden Leisure Centre & Appleby Swimming P,Building Maintenance - Leisure,SHAUN BELL ELECTRICAL LTD,SHA036,02/09/2022,204241,1000,PAVING AT PENRITH LEISURE CENTRE
Eden District Council,http://opendatacommunities.org/id/district-council/eden,Planning Services,Planning Services,Agency Staff,VIVID RESOURCING,VIV001,02/09/2022,204306,17500,"TIME SHEET WE 17,24,31.7.22 & 7.8.22 FM"
Eden District Council,http://opendatacommunities.org/id/district-council/eden,Environmental Services,Environmental Services,Agency Staff,VIVID RESOURCING,VIV001,02/09/2022,204307,720,TIME SHEET WE 7.8.22 BN
Eden District Council,http://opendatacommunities.org/id/district-council/eden,Planning Services,Planning Services,Agency Staff,VIVID RESOURCING,VIV001,02/09/2022,204308,2750,TIME SHEET WE 7.8.22 JS
Eden District Council,http://opendatacommunities.org/id/district-council/eden,Planning Services,Planning Services,Agency Staff,VIVID RESOURCING,VIV001,02/09/2022,204309,2280,TIME SHEET WE 7.8.22 PJ
Eden District Council,http://opendatacommunities.org/id/district-council/eden,Technical Services Manager,Land Management,Building Maintenance,URBASER LIMITED,URB002,02/09/2022,204324,6637.57,BR AD HOC MAY 22
Eden District Council,http://opendatacommunities.org/id/district-council/eden,Technical Services Manager,Recycling,Supplies general,CUMBRIA WASTE RECYCLING LTD,CUM022,02/09/2022,204325,4866,200 GREEN WHEELIE BINS
Eden District Council,http://opendatacommunities.org/id/district-council/eden,Financial Services Manager,Financial Services,Agency Staff,CASTLEFIELD RECRUITMENT LTD,CAS016,02/09/2022,204329,2100,FSE SUPPORT 1.8.22-7.8.22 SH
Eden District Council,http://opendatacommunities.org/id/district-council/eden,Environmental Services,Pest Control,Pest Control,RENTOKIL INITIAL PEST CONTROL,REN009,02/09/2022,204394,1094.32,PEST MISC 1.9.22-30.09.22
Eden District Council,http://opendatacommunities.org/id/district-council/eden,Commercial Services Manager,Economic Development and Promotion,Professional fees,CVS BROXBOURNE AND EAST HERTS,CVS001,02/09/2022,204661,513.8,DRAGON APPRENTICE CHALLENGE
Eden District Council,http://opendatacommunities.org/id/district-council/eden,Revenue/Benefits Manager,Benefits,Rent allowance,REDACTED INFORMATION,EDC001,02/09/2022,229261,1098.63,HOUSING BENEFIT
Eden District Council,http://opendatacommunities.org/id/district-council/eden,Revenue/Benefits Manager,Benefits,Rent allowance,REDACTED INFORMATION,EDC001,02/09/2022,229262,3877.42,HOUSING BENEFIT
Eden District Council,http://opendatacommunities.org/id/district-council/eden,Revenue/Benefits Manager,Benefits,Grants and contributions,ENERGY GRANT REBATES,EDC001,02/09/2022,229263,750,ENERGY GRANT REBATES
Eden District Council,http://opendatacommunities.org/id/district-council/eden,Revenue/Benefits Manager,Benefits,Grants and contributions,ENERGY GRANT REBATES,EDC001,02/09/2022,229280,12150,ENERGY GRANT REBATES
Eden District Council,http://opendatacommunities.org/id/district-council/eden,Revenue/Benefits Manager,Business Rate Refunds,Unique payments ****,REDACTED INFORMATION,EDC001,02/09/2022,229419,476109.39,COUNCIL TAX REFUND
Eden District Council,http://opendatacommunities.org/id/district-council/eden,Revenue/Benefits Manager,Business Rate Refunds,Unique payments ****,REDACTED INFORMATION,EDC001,02/09/2022,229420,14232.62,COUNCIL TAX REFUND
Eden District Council,http://opendatacommunities.org/id/district-council/eden,Revenue/Benefits Manager,Benefits,Rent allowance,REDACTED INFORMATION,EDC001,02/09/2022,229427,491716.97,HOUSING BENEFIT
